[Event "Titled Tuesday Blitz November 15 Early 2022"]
[White "Harshavardhan G B"]
[Black "Xiong, Jeffery"]
[WhiteFideId "25059009"]
[BlackFideId "2047640"]
[WhiteElo "2333"]
[BlackElo "2725"]
[Result "1/2-1/2"]
[Round "03"]
[TimeControl "180+1"]
[Date "2022.11.15"]
[WhiteClock "0:00:18"]
[BlackClock "0:00:06"]

1. d4 {[%clk 0:03:00]}  Nf6 {[%clk 0:02:59]} 2. c4 {[%clk 0:02:53]}  g6 {[%clk 0:02:59]} 3. Nc3 {[%clk 0:02:52]}  d5 {[%clk 0:03:00]} 4. h4 {[%clk 0:02:50]}  c5 {[%clk 0:02:44]} 5. cxd5 {[%clk 0:02:45]}  Nxd5 {[%clk 0:02:39]} 6. dxc5 {[%clk 0:02:44]}  Nxc3 {[%clk 0:02:39]} 7. Qxd8+ {[%clk 0:02:43]}  Kxd8 {[%clk 0:02:40]} 8. bxc3 {[%clk 0:02:44]}  Bg7 {[%clk 0:02:41]} 9. Kd2 {[%clk 0:02:24]}  Na6 {[%clk 0:02:34]} 10. Ba3 {[%clk 0:02:23]}  Kc7 {[%clk 0:02:35]} 11. e4 {[%clk 0:02:15]}  Bg4 {[%clk 0:02:29]} 12. Nf3 {[%clk 0:02:10]}  Rad8+ {[%clk 0:02:26]} 13. Kc2 {[%clk 0:02:09]}  Bxf3 {[%clk 0:02:14]} 14. gxf3 {[%clk 0:02:10]}  Nb8 {[%clk 0:02:15]} 15. Rb1 {[%clk 0:02:05]}  Nc6 {[%clk 0:02:14]} 16. h5 {[%clk 0:01:53]}  Bh6 {[%clk 0:02:13]} 17. Bc1 {[%clk 0:01:49]}  Bxc1 {[%clk 0:02:12]} 18. Rxc1 {[%clk 0:01:49]}  Ne5 {[%clk 0:02:06]} 19. f4 {[%clk 0:01:24]}  Nd7 {[%clk 0:02:04]} 20. c6 {[%clk 0:01:22]}  Kxc6 {[%clk 0:02:04]} 21. Bc4 {[%clk 0:01:22]}  e6 {[%clk 0:02:04]} 22. f5 {[%clk 0:01:17]}  Ne5 {[%clk 0:02:03]} 23. Bb3 {[%clk 0:01:17]}  exf5 {[%clk 0:01:37]} 24. exf5 {[%clk 0:01:15]}  g5 {[%clk 0:01:38]} 25. f6 {[%clk 0:01:15]}  h6 {[%clk 0:01:04]} 26. Rce1 {[%clk 0:01:08]}  Ng4 {[%clk 0:00:56]} 27. Re7 {[%clk 0:01:06]}  Rd6 {[%clk 0:00:48]} 28. f3 {[%clk 0:00:49]}  Nxf6 {[%clk 0:00:48]} 29. Bxf7 {[%clk 0:00:46]}  Rhd8 {[%clk 0:00:48]} 30. Rhe1 {[%clk 0:00:42]}  R8d7 {[%clk 0:00:37]} 31. Bg6 {[%clk 0:00:37]}  Rd2+ {[%clk 0:00:33]} 32. Kb3 {[%clk 0:00:36]}  Rxe7 {[%clk 0:00:27]} 33. Rxe7 {[%clk 0:00:37]}  Rd7 {[%clk 0:00:27]} 34. Re6+ {[%clk 0:00:36]}  Rd6 {[%clk 0:00:28]} 35. Re7 {[%clk 0:00:36]}  a6 {[%clk 0:00:25]} 36. a4 {[%clk 0:00:35]}  Rd7 {[%clk 0:00:25]} 37. Re6+ {[%clk 0:00:35]}  Rd6 {[%clk 0:00:26]} 38. Re7 {[%clk 0:00:35]}  b5 {[%clk 0:00:26]} 39. axb5+ {[%clk 0:00:35]}  axb5 {[%clk 0:00:27]} 40. Rf7 {[%clk 0:00:31]}  Kc5 {[%clk 0:00:27]} 41. Rc7+ {[%clk 0:00:31]}  Rc6 {[%clk 0:00:27]} 42. Re7 {[%clk 0:00:22]}  Rb6 {[%clk 0:00:26]} 43. Re5+ {[%clk 0:00:22]}  Kd6 {[%clk 0:00:26]} 44. Rf5 {[%clk 0:00:21]}  Ke6 {[%clk 0:00:26]} 45. Rc5 {[%clk 0:00:19]}  Kd6 {[%clk 0:00:26]} 46. Rf5 {[%clk 0:00:19]}  Nd7 {[%clk 0:00:19]} 47. Kb4 {[%clk 0:00:18]}  Ne5 {[%clk 0:00:16]} 48. Rf6+ {[%clk 0:00:18]}  Kc7 {[%clk 0:00:17]} 49. Rf5 {[%clk 0:00:18]}  Kd6 {[%clk 0:00:13]} 50. Rf6+ {[%clk 0:00:18]}  Kc7 {[%clk 0:00:13]} 51. Rf5 {[%clk 0:00:18]}  Kd6 {[%clk 0:00:06]} 1/2-1/2


[Site "https://www.chess.com"]

[Event "Titled Tuesday Blitz November 15 Early 2022"]
[White "Ibadov, Dashgyn"]
[Black "Kobo, Ori"]
[WhiteFideId "24107514"]
[BlackFideId "2812320"]
[WhiteElo "2208"]
[BlackElo "2447"]
[Result "1-0"]
[Round "03"]
[TimeControl "180+1"]
[Date "2022.11.16"]
[WhiteClock "0:00:03"]
[BlackClock "0:00:02"]

1. e4 {[%clk 0:03:00]}  c5 {[%clk 0:03:00]} 2. Nc3 {[%clk 0:02:59]}  Nc6 {[%clk 0:03:00]} 3. Bb5 {[%clk 0:02:59]}  Nd4 {[%clk 0:03:00]} 4. Nf3 {[%clk 0:02:59]}  a6 {[%clk 0:02:57]} 5. Bd3 {[%clk 0:02:58]}  g6 {[%clk 0:02:56]} 6. O-O {[%clk 0:02:54]}  Bg7 {[%clk 0:02:56]} 7. Rb1 {[%clk 0:02:37]}  Nxf3+ {[%clk 0:02:48]} 8. Qxf3 {[%clk 0:02:36]}  d6 {[%clk 0:02:48]} 9. b4 {[%clk 0:02:31]}  cxb4 {[%clk 0:02:48]} 10. Rxb4 {[%clk 0:02:32]}  Nf6 {[%clk 0:02:49]} 11. Nd5 {[%clk 0:02:18]}  Nd7 {[%clk 0:02:45]} 12. Bb2 {[%clk 0:02:16]}  Bxb2 {[%clk 0:02:31]} 13. Rxb2 {[%clk 0:02:17]}  e6 {[%clk 0:02:29]} 14. Ne3 {[%clk 0:02:12]}  O-O {[%clk 0:02:16]} 15. Nc4 {[%clk 0:02:11]}  b5 {[%clk 0:02:10]} 16. Ne3 {[%clk 0:02:01]}  Bb7 {[%clk 0:01:54]} 17. a4 {[%clk 0:01:58]}  Nc5 {[%clk 0:01:50]} 18. axb5 {[%clk 0:01:57]}  axb5 {[%clk 0:01:51]} 19. Rxb5 {[%clk 0:01:54]}  Ba6 {[%clk 0:01:51]} 20. Rxc5 {[%clk 0:01:27]}  Bxd3 {[%clk 0:01:41]} 21. cxd3 {[%clk 0:01:28]}  dxc5 {[%clk 0:01:41]} 22. Nc4 {[%clk 0:01:27]}  Qd4 {[%clk 0:01:39]} 23. e5 {[%clk 0:01:20]}  Rad8 {[%clk 0:01:36]} 24. g3 {[%clk 0:00:49]}  Qxd3 {[%clk 0:01:35]} 25. Ne3 {[%clk 0:00:49]}  Rd4 {[%clk 0:01:24]} 26. Rc1 {[%clk 0:00:35]}  c4 {[%clk 0:01:25]} 27. h4 {[%clk 0:00:29]}  h5 {[%clk 0:01:16]} 28. Rc2 {[%clk 0:00:25]}  Rfd8 {[%clk 0:01:00]} 29. Kh2 {[%clk 0:00:23]}  Qb3 {[%clk 0:00:55]} 30. Qf6 {[%clk 0:00:17]}  Rxd2 {[%clk 0:00:44]} 31. Rxc4 {[%clk 0:00:15]}  Rf8 {[%clk 0:00:32]} 32. Kh3 {[%clk 0:00:10]}  Qb1 {[%clk 0:00:27]} 33. Kh2 {[%clk 0:00:08]}  Re2 {[%clk 0:00:21]} 34. Ng2 {[%clk 0:00:07]}  Qf1 {[%clk 0:00:19]} 35. Rf4 {[%clk 0:00:06]}  Rb2 {[%clk 0:00:16]} 36. Ne3 {[%clk 0:00:04]}  Qe2 {[%clk 0:00:16]} 37. g4 {[%clk 0:00:04]}  Qxe3 {[%clk 0:00:14]} 38. gxh5 {[%clk 0:00:03]}  Qa7 {[%clk 0:00:02]} 39. h6 {[%clk 0:00:03]} 1-0


[Site "https://www.chess.com"]

[Event "Titled Tuesday Blitz November 15 Early 2022"]
[White "Itgelt, Khuyagtsogt"]
[Black "Gonzalez, Francisco Silva"]
[WhiteFideId "4902912"]
[BlackFideId "1512285"]
[WhiteElo "2129"]
[BlackElo "2159"]
[Result "1-0"]
[Round "03"]
[TimeControl "180+1"]
[Date "2022.11.16"]
[WhiteClock "0:00:41"]
[BlackClock "0:01:52"]

1. d4 {[%clk 0:03:00]}  Nf6 {[%clk 0:02:55]} 2. c4 {[%clk 0:03:01]}  e6 {[%clk 0:02:54]} 3. Nf3 {[%clk 0:03:01]}  d5 {[%clk 0:02:48]} 4. Nc3 {[%clk 0:02:58]}  a6 {[%clk 0:02:47]} 5. cxd5 {[%clk 0:02:49]}  exd5 {[%clk 0:02:46]} 6. Bg5 {[%clk 0:02:48]}  Be6 {[%clk 0:02:46]} 7. e3 {[%clk 0:02:48]}  Bd6 {[%clk 0:02:45]} 8. Bd3 {[%clk 0:02:48]}  Nbd7 {[%clk 0:02:45]} 9. Qc2 {[%clk 0:02:47]}  c6 {[%clk 0:02:45]} 10. Bf4 {[%clk 0:02:38]}  Qb8 {[%clk 0:02:45]} 11. Bg3 {[%clk 0:02:38]}  O-O {[%clk 0:02:43]} 12. O-O {[%clk 0:02:36]}  Rc8 {[%clk 0:02:39]} 13. Ng5 {[%clk 0:02:34]}  c5 {[%clk 0:02:39]} 14. Bxh7+ {[%clk 0:02:29]}  Kf8 {[%clk 0:02:36]} 15. Bf5 {[%clk 0:02:19]}  cxd4 {[%clk 0:02:33]} 16. exd4 {[%clk 0:02:05]}  Re8 {[%clk 0:02:30]} 17. Bxe6 {[%clk 0:01:59]}  fxe6 {[%clk 0:02:29]} 18. Rae1 {[%clk 0:01:46]}  e5 {[%clk 0:02:26]} 19. Qf5 {[%clk 0:01:31]}  exd4 {[%clk 0:02:19]} 20. Nxd5 {[%clk 0:01:31]}  Rxe1 {[%clk 0:02:15]} 21. Rxe1 {[%clk 0:01:29]}  Bxg3 {[%clk 0:02:15]} 22. Nh7+ {[%clk 0:00:53]}  Kg8 {[%clk 0:02:09]} 23. Nhxf6+ {[%clk 0:00:53]}  Nxf6 {[%clk 0:02:08]} 24. Nxf6+ {[%clk 0:00:53]}  gxf6 {[%clk 0:02:00]} 25. Qg6+ {[%clk 0:00:53]}  Kf8 {[%clk 0:01:59]} 26. Qxf6+ {[%clk 0:00:54]}  Kg8 {[%clk 0:01:58]} 27. Re7 {[%clk 0:00:45]}  Bxf2+ {[%clk 0:01:58]} 28. Qxf2 {[%clk 0:00:44]}  Qf8 {[%clk 0:01:54]} 29. Qg3+ {[%clk 0:00:42]}  Qg7 {[%clk 0:01:52]} 30. Qxg7# {[%clk 0:00:41]} 1-0


[Site "https://www.chess.com"]

[Event "Titled Tuesday Blitz November 15 Early 2022"]
[White "Jarmula, Lukasz"]
[Black "Hadzovic, Amir"]
[WhiteFideId "1160664"]
[BlackFideId "14402300"]
[WhiteElo "2357"]
[BlackElo "2262"]
[Result "1-0"]
[Round "03"]
[TimeControl "180+1"]
[Date "2022.11.16"]
[WhiteClock "0:01:47"]
[BlackClock "0:00:01"]

1. b3 {[%clk 0:03:00]}  e5 {[%clk 0:02:19]} 2. Bb2 {[%clk 0:03:00]}  Nc6 {[%clk 0:02:19]} 3. e3 {[%clk 0:03:01]}  Nf6 {[%clk 0:02:20]} 4. Nf3 {[%clk 0:03:01]}  e4 {[%clk 0:02:21]} 5. Nd4 {[%clk 0:03:01]}  Nxd4 {[%clk 0:02:19]} 6. Bxd4 {[%clk 0:03:02]}  d5 {[%clk 0:02:17]} 7. c4 {[%clk 0:03:01]}  dxc4 {[%clk 0:02:16]} 8. Bxc4 {[%clk 0:03:00]}  Be7 {[%clk 0:02:15]} 9. Nc3 {[%clk 0:03:00]}  O-O {[%clk 0:02:16]} 10. O-O {[%clk 0:02:59]}  Bf5 {[%clk 0:02:07]} 11. Rc1 {[%clk 0:02:56]}  c6 {[%clk 0:02:04]} 12. f3 {[%clk 0:02:53]}  exf3 {[%clk 0:01:54]} 13. Qxf3 {[%clk 0:02:53]}  Bg6 {[%clk 0:01:55]} 14. a4 {[%clk 0:02:50]}  c5 {[%clk 0:01:40]} 15. Bxf6 {[%clk 0:02:49]}  Bxf6 {[%clk 0:01:41]} 16. Nd5 {[%clk 0:02:47]}  Be5 {[%clk 0:01:41]} 17. Qg4 {[%clk 0:02:38]}  a6 {[%clk 0:01:32]} 18. d4 {[%clk 0:02:30]}  cxd4 {[%clk 0:01:19]} 19. exd4 {[%clk 0:02:31]}  Bd6 {[%clk 0:01:10]} 20. h4 {[%clk 0:02:28]}  h5 {[%clk 0:00:46]} 21. Nf6+ {[%clk 0:02:14]}  Qxf6 {[%clk 0:00:45]} 22. Rxf6 {[%clk 0:02:13]}  hxg4 {[%clk 0:00:44]} 23. Rxd6 {[%clk 0:02:06]}  Be4 {[%clk 0:00:31]} 24. Re1 {[%clk 0:02:03]}  Rae8 {[%clk 0:00:21]} 25. Rd7 {[%clk 0:02:00]}  b5 {[%clk 0:00:16]} 26. axb5 {[%clk 0:02:00]}  axb5 {[%clk 0:00:17]} 27. Bxb5 {[%clk 0:01:59]}  Bc2 {[%clk 0:00:05]} 28. Rxe8 {[%clk 0:01:55]}  Rxe8 {[%clk 0:00:06]} 29. Bc4 {[%clk 0:01:54]}  Re3 {[%clk 0:00:02]} 30. Kf2 {[%clk 0:01:52]}  Rc3 {[%clk 0:00:01]} 31. Bxf7+ {[%clk 0:01:47]} 1-0


[Site "https://www.chess.com"]

[Event "Titled Tuesday Blitz November 15 Early 2022"]
[White "Jaskolka, Tomasz"]
[Black "Ricaurte Lopez, Juan Carlos"]
[WhiteFideId "1170791"]
[BlackFideId "3600327"]
[WhiteElo "2126"]
[BlackElo "2209"]
[Result "1-0"]
[Round "03"]
[TimeControl "180+1"]
[Date "2022.11.16"]
[WhiteClock "0:00:45"]
[BlackClock "0:00:01"]

1. e4 {[%clk 0:02:59]}  e5 {[%clk 0:02:58]} 2. Nf3 {[%clk 0:02:58]}  Nc6 {[%clk 0:02:55]} 3. Nc3 {[%clk 0:02:57]}  Nf6 {[%clk 0:02:54]} 4. Nxe5 {[%clk 0:02:57]}  Bc5 {[%clk 0:02:47]} 5. Nxc6 {[%clk 0:02:40]}  dxc6 {[%clk 0:02:45]} 6. d3 {[%clk 0:02:40]}  Ng4 {[%clk 0:02:39]} 7. Be3 {[%clk 0:02:16]}  Nxe3 {[%clk 0:02:10]} 8. fxe3 {[%clk 0:02:16]}  Bxe3 {[%clk 0:02:11]} 9. Qf3 {[%clk 0:02:14]}  Bd4 {[%clk 0:02:08]} 10. Be2 {[%clk 0:02:08]}  O-O {[%clk 0:02:07]} 11. O-O-O {[%clk 0:02:07]}  Be6 {[%clk 0:02:03]} 12. Kb1 {[%clk 0:02:05]}  a5 {[%clk 0:01:56]} 13. Qf4 {[%clk 0:01:53]}  b5 {[%clk 0:01:43]} 14. Bg4 {[%clk 0:01:52]}  a4 {[%clk 0:01:20]} 15. Ne2 {[%clk 0:01:43]}  Bf6 {[%clk 0:00:58]} 16. Bxe6 {[%clk 0:01:42]}  fxe6 {[%clk 0:00:56]} 17. Qg4 {[%clk 0:01:42]}  Qd6 {[%clk 0:00:29]} 18. d4 {[%clk 0:01:32]}  e5 {[%clk 0:00:29]} 19. d5 {[%clk 0:01:30]}  c5 {[%clk 0:00:26]} 20. Ng3 {[%clk 0:01:27]}  a3 {[%clk 0:00:20]} 21. b3 {[%clk 0:01:27]}  c4 {[%clk 0:00:16]} 22. Rhf1 {[%clk 0:01:19]}  Qc5 {[%clk 0:00:15]} 23. Qe2 {[%clk 0:00:54]}  cxb3 {[%clk 0:00:13]} 24. cxb3 {[%clk 0:00:55]}  Bg5 {[%clk 0:00:12]} 25. Qc2 {[%clk 0:00:54]}  Qe3 {[%clk 0:00:08]} 26. Nf5 {[%clk 0:00:51]}  Qb6 {[%clk 0:00:03]} 27. h4 {[%clk 0:00:50]}  Bf4 {[%clk 0:00:02]} 28. g3 {[%clk 0:00:49]}  Be3 {[%clk 0:00:02]} 29. Qe2 {[%clk 0:00:48]}  Bd4 {[%clk 0:00:01]} 30. Rc1 {[%clk 0:00:45]}  Qg6 {[%clk 0:00:01]} 31. Ne7+ {[%clk 0:00:45]} 1-0


[Site "https://www.chess.com"]

[Event "Titled Tuesday Blitz November 15 Early 2022"]
[White "Jumabayev, Rinat"]
[Black "Kouskoutis, Georgios-Alexandros"]
[WhiteFideId "13702661"]
[BlackFideId "4234049"]
[WhiteElo "2561"]
[BlackElo "2187"]
[Result "1-0"]
[Round "03"]
[TimeControl "180+1"]
[Date "2022.11.16"]
[WhiteClock "0:00:22"]
[BlackClock "0:00:03"]

1. d4 {[%clk 0:02:57]}  Nf6 {[%clk 0:02:55]} 2. Nf3 {[%clk 0:02:58]}  d5 {[%clk 0:02:54]} 3. c3 {[%clk 0:02:58]}  e6 {[%clk 0:02:43]} 4. Bf4 {[%clk 0:02:57]}  Bd6 {[%clk 0:02:41]} 5. e3 {[%clk 0:02:56]}  O-O {[%clk 0:02:38]} 6. Bd3 {[%clk 0:02:56]}  b6 {[%clk 0:02:30]} 7. Qe2 {[%clk 0:02:55]}  a5 {[%clk 0:02:16]} 8. Nbd2 {[%clk 0:02:32]}  Ba6 {[%clk 0:02:11]} 9. Bxa6 {[%clk 0:02:32]}  Nxa6 {[%clk 0:02:10]} 10. Ne5 {[%clk 0:02:32]}  c5 {[%clk 0:02:03]} 11. O-O {[%clk 0:02:32]}  Nb8 {[%clk 0:01:39]} 12. dxc5 {[%clk 0:02:31]}  Bxc5 {[%clk 0:01:35]} 13. Rfd1 {[%clk 0:02:19]}  Nbd7 {[%clk 0:01:32]} 14. Nef3 {[%clk 0:02:14]}  Qe7 {[%clk 0:01:28]} 15. e4 {[%clk 0:02:08]}  dxe4 {[%clk 0:01:24]} 16. Nxe4 {[%clk 0:02:08]}  Nxe4 {[%clk 0:01:24]} 17. Qxe4 {[%clk 0:02:09]}  Nf6 {[%clk 0:01:23]} 18. Qe2 {[%clk 0:02:06]}  Rfd8 {[%clk 0:01:11]} 19. Ne5 {[%clk 0:02:04]}  Qe8 {[%clk 0:00:52]} 20. h3 {[%clk 0:01:57]}  h6 {[%clk 0:00:44]} 21. Qf3 {[%clk 0:01:52]}  Nd5 {[%clk 0:00:23]} 22. Bg3 {[%clk 0:01:31]}  a4 {[%clk 0:00:16]} 23. Rd3 {[%clk 0:01:21]}  Ne7 {[%clk 0:00:10]} 24. Rad1 {[%clk 0:01:08]}  Nf5 {[%clk 0:00:10]} 25. Bf4 {[%clk 0:01:03]}  Rxd3 {[%clk 0:00:09]} 26. Qxd3 {[%clk 0:01:01]}  Be7 {[%clk 0:00:06]} 27. Qd7 {[%clk 0:00:42]}  Bf6 {[%clk 0:00:06]} 28. Qxe8+ {[%clk 0:00:39]}  Rxe8 {[%clk 0:00:07]} 29. Nd7 {[%clk 0:00:40]}  b5 {[%clk 0:00:04]} 30. g4 {[%clk 0:00:35]}  Nh4 {[%clk 0:00:02]} 31. Nxf6+ {[%clk 0:00:33]}  gxf6 {[%clk 0:00:03]} 32. Bxh6 {[%clk 0:00:33]}  f5 {[%clk 0:00:03]} 33. Kf1 {[%clk 0:00:29]}  Kh7 {[%clk 0:00:03]} 34. Be3 {[%clk 0:00:24]}  fxg4 {[%clk 0:00:03]} 35. hxg4 {[%clk 0:00:24]}  Kg6 {[%clk 0:00:02]} 36. Rd4 {[%clk 0:00:23]}  Nf3 {[%clk 0:00:01]} 37. Rb4 {[%clk 0:00:23]}  Rb8 {[%clk 0:00:01]} 38. c4 {[%clk 0:00:23]}  Ne5 {[%clk 0:00:02]} 39. cxb5 {[%clk 0:00:23]}  f5 {[%clk 0:00:01]} 40. gxf5+ {[%clk 0:00:23]}  Kxf5 {[%clk 0:00:02]} 41. Ke2 {[%clk 0:00:23]}  a3 {[%clk 0:00:01]} 42. bxa3 {[%clk 0:00:22]}  Ng4 {[%clk 0:00:01]} 43. a4 {[%clk 0:00:22]}  Nxe3 {[%clk 0:00:01]} 44. fxe3 {[%clk 0:00:22]}  Ke5 {[%clk 0:00:02]} 45. b6 {[%clk 0:00:21]}  Kd5 {[%clk 0:00:03]} 46. a5 {[%clk 0:00:22]}  Kc5 {[%clk 0:00:03]} 47. Rb3 {[%clk 0:00:22]} 1-0


[Site "https://www.chess.com"]

[Event "Titled Tuesday Blitz November 15 Early 2022"]
[White "Kaidanov, Gregory"]
[Black "Fiol, Fabrice"]
[WhiteFideId "2008564"]
[BlackFideId "611670"]
[WhiteElo "2636"]
[BlackElo "2416"]
[Result "1-0"]
[Round "03"]
[TimeControl "180+1"]
[Date "2022.11.16"]
[WhiteClock "0:00:04"]
[BlackClock "0:00:06"]

1. Nf3 {[%clk 0:03:00]}  b6 {[%clk 0:02:56]} 2. e4 {[%clk 0:03:00]}  e6 {[%clk 0:02:54]} 3. d4 {[%clk 0:02:58]}  Bb7 {[%clk 0:02:54]} 4. Bd3 {[%clk 0:02:58]}  c5 {[%clk 0:02:53]} 5. dxc5 {[%clk 0:02:57]}  Bxc5 {[%clk 0:02:53]} 6. O-O {[%clk 0:02:55]}  Qc7 {[%clk 0:02:51]} 7. Nc3 {[%clk 0:02:54]}  a6 {[%clk 0:02:51]} 8. Qe2 {[%clk 0:02:50]}  Ne7 {[%clk 0:02:44]} 9. Na4 {[%clk 0:02:43]}  O-O {[%clk 0:02:43]} 10. c4 {[%clk 0:02:41]}  Ng6 {[%clk 0:02:39]} 11. Nxc5 {[%clk 0:02:40]}  bxc5 {[%clk 0:02:40]} 12. g3 {[%clk 0:02:31]}  Nc6 {[%clk 0:02:38]} 13. Be3 {[%clk 0:02:30]}  d6 {[%clk 0:02:35]} 14. Rad1 {[%clk 0:02:27]}  Nce5 {[%clk 0:02:32]} 15. Nxe5 {[%clk 0:02:25]}  Nxe5 {[%clk 0:02:33]} 16. Bc2 {[%clk 0:02:25]}  f5 {[%clk 0:02:32]} 17. f4 {[%clk 0:02:17]}  Ng4 {[%clk 0:02:32]} 18. h3 {[%clk 0:02:17]}  Nxe3 {[%clk 0:02:31]} 19. Qxe3 {[%clk 0:02:18]}  Qc6 {[%clk 0:02:09]} 20. Rfe1 {[%clk 0:02:13]}  Rad8 {[%clk 0:02:03]} 21. Kh2 {[%clk 0:02:13]}  h6 {[%clk 0:01:35]} 22. Rd2 {[%clk 0:02:10]}  Kh8 {[%clk 0:01:30]} 23. Qc3 {[%clk 0:02:02]}  e5 {[%clk 0:01:21]} 24. exf5 {[%clk 0:01:44]}  exf4 {[%clk 0:01:21]} 25. Be4 {[%clk 0:01:42]}  Qc7 {[%clk 0:01:21]} 26. Bxb7 {[%clk 0:01:35]}  Qxb7 {[%clk 0:01:22]} 27. gxf4 {[%clk 0:01:32]}  Rxf5 {[%clk 0:01:21]} 28. Re6 {[%clk 0:01:31]}  Rxf4 {[%clk 0:01:10]} 29. Rxh6+ {[%clk 0:01:21]}  Kg8 {[%clk 0:01:10]} 30. Rg6 {[%clk 0:01:19]}  Rd7 {[%clk 0:00:26]} 31. Qg3 {[%clk 0:01:14]}  Qe4 {[%clk 0:00:19]} 32. Rg2 {[%clk 0:01:09]}  Rff7 {[%clk 0:00:19]} 33. b3 {[%clk 0:01:05]}  a5 {[%clk 0:00:19]} 34. Rxd6 {[%clk 0:01:01]}  Rxd6 {[%clk 0:00:18]} 35. Qxd6 {[%clk 0:01:01]}  a4 {[%clk 0:00:19]} 36. Qd8+ {[%clk 0:00:50]}  Kh7 {[%clk 0:00:19]} 37. Qg5 {[%clk 0:00:50]}  Kg8 {[%clk 0:00:17]} 38. Qxc5 {[%clk 0:00:41]}  Qf4+ {[%clk 0:00:16]} 39. Kh1 {[%clk 0:00:41]}  Qc1+ {[%clk 0:00:15]} 40. Rg1 {[%clk 0:00:33]}  Qh6 {[%clk 0:00:10]} 41. Qc8+ {[%clk 0:00:29]}  Kh7 {[%clk 0:00:10]} 42. Qg4 {[%clk 0:00:28]}  Qc6+ {[%clk 0:00:10]} 43. Qg2 {[%clk 0:00:27]}  Qh6 {[%clk 0:00:10]} 44. Kh2 {[%clk 0:00:19]}  Qf4+ {[%clk 0:00:09]} 45. Qg3 {[%clk 0:00:19]}  Qd2+ {[%clk 0:00:09]} 46. Rg2 {[%clk 0:00:20]}  Qh6 {[%clk 0:00:10]} 47. c5 {[%clk 0:00:19]}  axb3 {[%clk 0:00:10]} 48. axb3 {[%clk 0:00:18]}  Qh5 {[%clk 0:00:08]} 49. c6 {[%clk 0:00:17]}  g6 {[%clk 0:00:07]} 50. Rc2 {[%clk 0:00:14]}  Rf3 {[%clk 0:00:06]} 51. Qg2 {[%clk 0:00:08]}  Qe5+ {[%clk 0:00:06]} 52. Kh1 {[%clk 0:00:08]}  Qf5 {[%clk 0:00:06]} 53. Rc1 {[%clk 0:00:08]}  Rxh3+ {[%clk 0:00:06]} 54. Kg1 {[%clk 0:00:07]}  Qh5 {[%clk 0:00:07]} 55. c7 {[%clk 0:00:05]}  Rh4 {[%clk 0:00:03]} 56. c8=Q {[%clk 0:00:05]}  Rg4 {[%clk 0:00:04]} 57. Qcxg4 {[%clk 0:00:05]}  Qxg4 {[%clk 0:00:05]} 58. Qxg4 {[%clk 0:00:04]}  Kh6 {[%clk 0:00:05]} 59. Rc6 {[%clk 0:00:05]}  Kh7 {[%clk 0:00:05]} 60. Qxg6+ {[%clk 0:00:06]}  Kh8 {[%clk 0:00:06]} 61. Rc8# {[%clk 0:00:04]} 1-0


[Site "https://www.chess.com"]

[Event "Titled Tuesday Blitz November 15 Early 2022"]
[White "Khandelwal, Ankush"]
[Black "Chylewski, Patryk"]
[WhiteFideId "413470"]
[BlackFideId "1186191"]
[WhiteElo "2271"]
[BlackElo "2192"]
[Result "1-0"]
[Round "03"]
[TimeControl "180+1"]
[Date "2022.11.16"]
[WhiteClock "0:01:09"]
[BlackClock "0:01:00"]

1. e4 {[%clk 0:03:00]}  c5 {[%clk 0:02:59]} 2. Nf3 {[%clk 0:03:00]}  e6 {[%clk 0:02:59]} 3. d4 {[%clk 0:03:00]}  cxd4 {[%clk 0:03:00]} 4. Nxd4 {[%clk 0:03:00]}  Nc6 {[%clk 0:03:00]} 5. Nc3 {[%clk 0:02:59]}  Qc7 {[%clk 0:03:00]} 6. Be3 {[%clk 0:02:22]}  a6 {[%clk 0:03:00]} 7. a3 {[%clk 0:02:20]}  Nf6 {[%clk 0:03:00]} 8. f4 {[%clk 0:02:12]}  d6 {[%clk 0:02:54]} 9. Qf3 {[%clk 0:02:09]}  Be7 {[%clk 0:02:45]} 10. O-O-O {[%clk 0:02:06]}  Nxd4 {[%clk 0:02:45]} 11. Bxd4 {[%clk 0:02:02]}  e5 {[%clk 0:02:39]} 12. fxe5 {[%clk 0:01:47]}  dxe5 {[%clk 0:02:40]} 13. Qg3 {[%clk 0:01:46]}  O-O {[%clk 0:02:04]} 14. Bxe5 {[%clk 0:01:45]}  Qa5 {[%clk 0:02:02]} 15. Nd5 {[%clk 0:01:43]}  Kh8 {[%clk 0:01:13]} 16. Nxe7 {[%clk 0:01:39]}  Nh5 {[%clk 0:01:08]} 17. Qg5 {[%clk 0:01:18]}  Bg4 {[%clk 0:00:59]} 18. Bxg7+ {[%clk 0:01:14]}  Nxg7 {[%clk 0:01:00]} 19. Qxa5 {[%clk 0:01:14]}  Bxd1 {[%clk 0:01:00]} 20. Kxd1 {[%clk 0:01:14]}  Rad8+ {[%clk 0:01:00]} 21. Bd3 {[%clk 0:01:14]}  Ne6 {[%clk 0:01:00]} 22. Qe5+ {[%clk 0:01:09]} 1-0


[Site "https://www.chess.com"]

[Event "Titled Tuesday Blitz November 15 Early 2022"]
[White "Kirillov, Dmitry"]
[Black "Dilmukhametov, Artur"]
[WhiteFideId "34180572"]
[BlackFideId "24179922"]
[WhiteElo "2095"]
[BlackElo "2197"]
[Result "1-0"]
[Round "03"]
[TimeControl "180+1"]
[Date "2022.11.16"]
[WhiteClock "0:00:07"]
[BlackClock "0:00:43"]

1. e4 {[%clk 0:03:00]}  e6 {[%clk 0:02:59]} 2. d4 {[%clk 0:02:59]}  d5 {[%clk 0:02:58]} 3. e5 {[%clk 0:03:00]}  c5 {[%clk 0:02:58]} 4. c3 {[%clk 0:03:01]}  Qb6 {[%clk 0:02:57]} 5. Nf3 {[%clk 0:03:00]}  Nc6 {[%clk 0:02:58]} 6. a3 {[%clk 0:03:00]}  cxd4 {[%clk 0:02:54]} 7. cxd4 {[%clk 0:03:01]}  Nh6 {[%clk 0:02:50]} 8. Bd3 {[%clk 0:03:01]}  Bd7 {[%clk 0:02:48]} 9. Bc2 {[%clk 0:03:01]}  Nf5 {[%clk 0:02:35]} 10. Bxf5 {[%clk 0:03:01]}  exf5 {[%clk 0:02:35]} 11. Nc3 {[%clk 0:03:02]}  Be6 {[%clk 0:02:34]} 12. O-O {[%clk 0:03:03]}  Be7 {[%clk 0:02:34]} 13. b4 {[%clk 0:03:03]}  a6 {[%clk 0:02:33]} 14. Bb2 {[%clk 0:03:02]}  O-O {[%clk 0:02:26]} 15. Rc1 {[%clk 0:03:01]}  f6 {[%clk 0:02:24]} 16. Re1 {[%clk 0:02:57]}  fxe5 {[%clk 0:02:23]} 17. Nxe5 {[%clk 0:02:50]}  Qc7 {[%clk 0:02:17]} 18. Nxc6 {[%clk 0:02:07]}  Qxc6 {[%clk 0:02:16]} 19. Qe2 {[%clk 0:02:07]}  Rf6 {[%clk 0:02:13]} 20. Nb1 {[%clk 0:01:28]}  Qd6 {[%clk 0:02:09]} 21. Nd2 {[%clk 0:01:29]}  Re8 {[%clk 0:02:06]} 22. Nf3 {[%clk 0:01:25]}  Bd8 {[%clk 0:01:54]} 23. Ne5 {[%clk 0:01:25]}  Bc7 {[%clk 0:01:48]} 24. f4 {[%clk 0:01:21]}  Rh6 {[%clk 0:01:45]} 25. b5 {[%clk 0:00:56]}  a5 {[%clk 0:01:42]} 26. a4 {[%clk 0:00:50]}  b6 {[%clk 0:01:41]} 27. Rc6 {[%clk 0:00:47]}  Qe7 {[%clk 0:01:38]} 28. Qd3 {[%clk 0:00:33]}  Bxe5 {[%clk 0:01:35]} 29. Rxe5 {[%clk 0:00:31]}  Kf7 {[%clk 0:01:23]} 30. g3 {[%clk 0:00:19]}  Rb8 {[%clk 0:01:22]} 31. Ba3 {[%clk 0:00:18]}  Qd7 {[%clk 0:01:21]} 32. Qc3 {[%clk 0:00:15]}  Rb7 {[%clk 0:01:18]} 33. Rd6 {[%clk 0:00:14]}  Qe8 {[%clk 0:01:14]} 34. Qc6 {[%clk 0:00:08]}  Qb8 {[%clk 0:00:46]} 35. Rdxe6 {[%clk 0:00:06]}  Rxe6 {[%clk 0:00:43]} 36. Qxe6# {[%clk 0:00:07]} 1-0


[Site "https://www.chess.com"]